Cogmind - Beta 15 @@@ ROGUE MODE // 2025.08.02 @ 18:54:08 Player: NeoBioHazard Result: Destroyed by S-10 Pest with Light Assault Rifle Performance ------------- Evolutions (0) 0 Regions Visited (2) 400 Robots Destroyed (12) 60 Value Destroyed (350) 350 Prototype IDs (3) 60 Alien Tech Used (0) 0 Bonus (0) 0 TOTAL SCORE: 870 Bonus ------- None Cogmind --------- Core Integrity 0/250 Matter 278/300 Energy 100/100 System Corruption 2% Temperature Cool (0) Movement Rolling (110) Location -10/Subcaves Parts ------- > --- POWER (1) -------- (None) > --- PROPULSION (2) --- Subdweller Monowheel Flight Unit > --- UTILITY (2) ------ Small Storage Unit > --- WEAPON (2) ------- (None) > --- INVENTORY (8) ---- Light Ion Engine Compact Wheel Improved Terrain Scanner Peak State ------------ > --- POWER ------------ Ion Engine > --- PROPULSION ------- Wheel Wheel > --- UTILITY ---------- Small Storage Unit Improved Terrain Scanner > --- WEAPON ----------- EM Pulse Gun Battle Rifle > --- INVENTORY -------- Light Ion Engine Compact Wheel Improved Terrain Scanner Light Assault Rifle Light Assault Rifle Grenade Launcher [Rating: 10] Favorites ----------- Power Ion Engine Engine Ion Engine Propulsion Wheel Wheel Wheel Flight Unit Flight Unit Utility Small Storage Unit Device Improved Terrain Scanner Storage Small Storage Unit Weapon EM Pulse Gun Energy Gun EM Pulse Gun Ballistic Gun Light Assault Rifle Ballistic Cannon Battle Cannon Launcher Grenade Launcher Build | -11 -10 -10 ------- Run | Yrd Mat Sub Slots Evolved . | . . . Power . | . . . Propulsion . | . . . Utility . | . . . Weapon . | . . . Parts Attached 14 | 7 . 7 Power 1 | 1 . . Engine 1 | 1 . . Core . | . . . Reactor . | . . . Propulsion 5 | 2 . 3 Treads . | . . . Leg . | . . . Wheel 4 | 2 . 2 Hover . | . . . Flight 1 | . . 1 Utility 2 | 2 . . Device 1 | 1 . . Storage 1 | 1 . . Processor . | . . . Hackware . | . . . Protection . | . . . Artifact . | . . . Weapon 6 | 2 . 4 Energy Gun 1 | 1 . . Energy Cannon . | . . . Ballistic Gun 3 | 1 . 2 Ballistic Cannon 1 | . . 1 Launcher 1 | . . 1 Special Weapon . | . . . Impact Weapon . | . . . Slashing Weapon . | . . . Piercing Weapon . | . . . Special Melee Weapon . | . . . Unidentified Prototypes . | . . . Parts Lost 11 | . . 11 Power 1 | . . 1 Propulsion 3 | . . 3 Utility 1 | . . 1 Weapon 6 | . . 6 Highest Loss Streak 8 | . . 8 To Critical Strikes . | . . . Average Backups 4 | 2 4 5 Power . | . 1 1 Propulsion . | . 1 1 Utility . | . 1 1 Weapon 1 | . 1 2 Tool/Special . | . . . Unused Backups 3 | . . 3 Power 1 | . . 1 Propulsion 1 | . . 1 Utility 1 | . . 1 Weapon . | . . . Tool/Special . | . . . Average Slot Usage (%) 84 | . 100 82 Engine 10 | . 14 10 Wheel 20 | . 28 19 Flight 1 | . . 1 Device 10 | . 14 10 Storage 14 | . 14 14 Energy Gun 10 | . 14 10 Ballistic Gun 13 | . 14 13 Peak Build Rating 10 | 9 9 10 Average Rating 7 | 5 9 7 On Entrance 6 | . 9 9 Naked Turns . | . . . Heaviest Build 15 | 14 14 15 Greatest Support 30 | 20 20 30 Greatest Overweight (x) 1 | 1 . 1 Average Overweight (x) . | . . . Largest Inventory Capacity 8 | 8 8 8 Average Capacity 7 | 7 8 8 Most Carried 6 | 4 5 6 Average Carried 4 | 2 4 5 Final Capacity 8 | 8 8 8 Final Carried 5 | 4 5 3 Class Distribution -------------------- 100% | Mutant Dominant Class ---------------- Mutant | -10/Materials Mutant | -10/Subcaves Resources | -11 -10 -10 ----------- Run | Yrd Mat Sub Matter Collected 402 | 277 . 125 Remotely . | . . . Salvage Created 370 | 105 . 265 Parts 29 | 10 . 19 Haulers Intercepted . | . . . Recyclers Shooed 1 | 1 . . Parts Field Recycled . | . . . Retrieved Matter . | . . . Parts Self-Destructed 9 | . . 9 Prevented . | . . . Kills | -11 -10 -10 ------- Run | Yrd Mat Sub Combat Hostiles Destroyed 9 | . . 9 Guns 6 | . . 6 Cannons 1 | . . 1 AOE 2 | . . 2 Classes Destroyed 4 | 2 . 2 Tunneler 2 | 2 . . Recycler 1 | 1 . . Swarmer 1 | . . 1 Subdweller 8 | . . 8 Best Kill Streak 4 | 2 . 4 Combat Bots Only 4 | . . 4 Max Kills in Single Turn 2 | 1 . 2 Gunslinging . | . . . Exploded 2 | . . 2 Melee . | . . . Uniques/NPCs Destroyed . | . . . Combat | -11 -10 -10 -------- Run | Yrd Mat Sub Hostile Shots Fired 81 | . 1 80 Missed 23 | . . 23 Hits 58 | . 1 57 Projectile 58 | . 1 57 Critical Strikes 2 | . . 2 Damage Taken 1024 | . 14 1010 Core 252 | . 14 238 Absorbed by Shields . | . . . Core Remaining (%) 100 | 100 . . Volleys Fired 54 | 7 . 47 Largest 2 | 2 . 2 Hottest 65 | 60 . 65 Shots Fired 86 | 14 . 72 Gun 75 | 14 . 61 Cannon 9 | . . 9 Launcher 2 | . . 2 Special . | . . . Kinetic 57 | 7 . 50 Thermal . | . . . Explosive 2 | . . 2 Electromagnetic 27 | 7 . 20 Robot Hit Streak 28 | 2 . 28 Robot Miss Streak 2 | 2 . 1 Penetration Max . | . . . Secondary Targets . | . . . Shots Hit Robots 58 | 7 . 51 Core Hits 25 | 4 . 21 Critical Kills . | . . . Critical Parts Destroyed . | . . . Critical Strikes . | . . . Melee Attacks . | . . . Impact . | . . . Slashing . | . . . Piercing . | . . . Sneak Attacks . | . . . Combat Hostiles . | . . . Follow-up Attacks . | . . . Damage Inflicted 819 | 79 . 740 Guns 495 | 79 . 416 Cannons 163 | . . 163 Explosions 153 | . . 153 Melee . | . . . Ramming 8 | . . 8 Kinetic 465 | 26 . 439 Thermal . | . . . Explosive 153 | . . 153 Electromagnetic 193 | 53 . 140 Impact . | . . . Slashing . | . . . Piercing . | . . . Highest Corruption 2 | . . 2 Average Corruption 2 | . . 2 Corruption Purged . | . . . Corruption Blocked . | . . . Effects 1 | . . 1 Message Errors 1 | . . 1 Overload Shots . | . . . Overflow Damage . | . . . Projectiles . | . . . Explosions . | . . . Melee . | . . . Knockbacks 2 | . . 2 Impact . | . . . Kinetic 2 | . . 2 Secondary . | . . . Self-Inflicted Damage 2 | . . 2 Shots . | . . . Rammed 6 | . . 6 Targets Rammed 6 | . . 6 Kicked . | . . . Crushed . | . . . Highest Temperature 40 | 40 . . Average Temperature 18 | 18 . . Received Heat Transfer 243 | . 9 234 Siege Activations . | . . . Martial Activations . | . . . Shielding Activations . | . . . Robots Disrupted . | . . . Combat Hostiles . | . . . Robots Corrupted . | . . . Combat Hostiles . | . . . Parts Fried . | . . . Impact Corruptions . | . . . Robots Melted . | . . . Combat Hostiles . | . . . Parts Melted 1 | . . 1 Heat Transferred . | . . . Parts Sabotaged . | . . . Parts Stolen . | . . . Parts Stripped . | . . . Power Chain Reactions . | . . . Alert | -11 -10 -10 ------- Run | Yrd Mat Sub Maximum Alert Level . | . . . Low Security (%) 100 | 100 100 . Level 1 . | . . . Level 2 . | . . . Level 3 . | . . . Level 4 . | . . . Level 5 . | . . . High Security . | . . . Max Security . | . . . Peak Influence 15 | 10 15 . Initial . | . . . Average 1 | 1 . . Influence Increases 59 | 15 24 20 Destroy 0b10 Robot/C 20 | . . 20 Destroy 0b10 Robot/NC 15 | 15 . . Successful Hack 9 | . 9 . Lose Combat Pursuer 15 | . 15 . Influence Decreases 59 | 15 9 35 Entered New Map 8 | . . 8 Time Decay 51 | 15 9 27 Squads Dispatched 1 | . 1 . Investigation 1 | . 1 . Extermination . | . . . Reinforcement . | . . . Assault . | . . . Garrison . | . . . Intercept . | . . . Searches Triggered . | . . . Construction Impeded . | . . . Haulers Reinforced . | . . . Active Scanning Responses . | . . . Cargo Convoy Interrupts . | . . . Stealth | -11 -10 -10 --------- Run | Yrd Mat Sub Distress Signals . | . . . Communications Jammed . | . . . Distress Signals . | . . . Times Spotted 16 | . 4 12 Peak Tracking Total 6 | . 3 6 Tactical Retreats 1 | . 1 . Traps | -11 -10 -10 ------- Run | Yrd Mat Sub Traps Triggered 1 | . . 1 Indirectly . | . . . Trap Hack Attempts . | . . . Triggered . | . . . Disarmed . | . . . Reprogrammed . | . . . Reused . | . . . Traps Extracted . | . . . Installed . | . . . Triggered . | . . . Machines | -11 -10 -10 ---------- Run | Yrd Mat Sub Machines Disabled . | . . . Max in Single Turn . | . . . Machines Repaired . | . . . Machines Dismantled . | . . . Machines Sabotaged . | . . . Overloaded Fab Kills . | . . . Hacking | -11 -10 -10 --------- Run | Yrd Mat Sub Machines Accessed 4 | . 3 1 Terminals 3 | . 3 . Fabricators . | . . . Repair Stations . | . . . Recycling Units . | . . . Scanalyzers . | . . . Garrison Access . | . . . Total Hacks 13 | . 9 4 Successful 8 | . 4 4 Failed 5 | . 5 . Catastrophic . | . . . Database Lockouts . | . . . Manual 6 | . 6 . Terminals 9 | . 9 . Fabricators . | . . . Repair Stations . | . . . Recycling Units . | . . . Scanalyzers . | . . . Garrison Access . | . . . Terminal Hacks 6 | . 2 4 Record 4 | . . 4 Prototype ID Bank 2 | . 2 . Fabricator Hacks . | . . . Repair Station Hacks . | . . . Recycling Unit Hacks . | . . . Scanalyzer . | . . . Garrison Access Hacks . | . . . Unauthorized Hacks 2 | . 2 . Terminals 2 | . 2 . Botnet 2 | . 2 . Fabricators . | . . . Repair Stations . | . . . Recycling Units . | . . . Scanalyzers . | . . . Garrison Access . | . . . Data Cores Recovered . | . . . Used . | . . . Hacking Detections 3 | . 3 . Full Trace Events 2 | . 2 . Feedback Events . | . . . Feedback Blocked . | . . . Robot Schematics Acquired . | . . . Robots Built . | . . . Authchips . | . . . Time . | . . . Total Robot Build Rating . | . . . Part Schematics Acquired . | . . . Parts Built . | . . . Authchips . | . . . Time . | . . . Total Part Build Rating . | . . . Parts Repaired . | . . . Time . | . . . Parts Recycled . | . . . Recycled Matter . | . . . Retrieved Matter . | . . . Retrieved Components . | . . . Parts Scanalyzed . | . . . Part Schematics Acquired . | . . . Parts Damaged . | . . . Bothacking | -11 -10 -10 ------------ Run | Yrd Mat Sub Used RIF Installer . | . . . Robots Hacked . | . . . Non-combat . | . . . Combat . | . . . Robot Hacks Applied . | . . . Relay Couplers Released . | . . . Fabnet Peak Effective % . | . . . Robots Rewired . | . . . Allies Hacked . | . . . Hacks Repelled . | . . . Allies | -11 -10 -10 -------- Run | Yrd Mat Sub Total Allies . | . . . Largest Group . | . . . Highest-Rated Group . | . . . Highest-Rated Ally . | . . . Total Orders . | . . . Ally Attacks . | . . . Total Damage . | . . . Kills . | . . . Allies Corrupted . | . . . Allies Melted . | . . . Intel | -11 -10 -10 ------- Run | Yrd Mat Sub Active Infowar (turns) 564 | 4 70 490 Terrain 564 | 4 70 490 Robot Analysis Total . | . . . Derelict Logs Recovered . | . . . Drone Launches . | . . . Drone Recoveries . | . . . Exploration | -11 -10 -10 ------------- Run | Yrd Mat Sub Turns Passed 800 | 66 70 664 Spaces Moved 699 | 40 86 573 Core 3 | 2 . 1 Treads . | . . . Legs . | . . . Wheels 694 | 38 86 570 Hover . | . . . Flight 2 | . . 2 Fastest Speed 50 | 50 80 80 Average Speed 87 | 79 80 89 Slowest Speed 125 | 100 80 125 Overloaded Moves . | . . . Propulsion Burnouts . | . . . Robots Hopped . | . . . Potential Cave-ins . | . . . Cave-ins Triggered . | . . . Exploration Rate (%) 20 | 4 18 40 Regions Visited 2 Branch Regions 1 Pre-discovered Areas 1 | . . 1 Known Exits Taken . | . . . Unknown Exits Taken 2 | 1 1 . Scrap Searched 4 | . . 4 Spaces Dug . | . . . Terrain Destroyed 11 | . . 11 Melee . | . . . Projectile . | . . . AOE 11 | . . 11 Terrain Rammed . | . . . Walls Destroyed . | . . . Machines Disabled . | . . . Actions | -11 -10 -10 --------- Run | Yrd Mat Sub Total 798 | 57 86 655 Wait 20 | . . 20 Move 697 | 39 85 573 Hop . | . . . Pick Up 6 | 4 1 1 Fast Attach 10 | 7 . 3 Attach 4 | . . 4 Detach . | . . . Swap 1 | . . 1 Drop . | . . . Fire 54 | 7 . 47 Melee . | . . . Ram 6 | . . 6 Kick . | . . . Crush . | . . . Escape Stasis . | . . . Rewire . | . . . Trap . | . . . Miscellaneous . | . . . Route ------- -11/Scrapyard -10/Materials -10/Subcaves History --------- Turn | Location | Event 10 | -11/Scrapyard | Discovered new exit (range 15) 67 | -11/Scrapyard | Entered Materials 130 | -10/Materials | Discovered new exit (range 9) 137 | -10/Materials | Entered Subcaves 315 | -10/Subcaves | Build established: Mutant 384 | -10/Subcaves | Shifting Twisted Machinery released Sub. Beam Cannon 386 | -10/Subcaves | Shifting Twisted Machinery released Sub. Shrapnel Launcher 451 | -10/Subcaves | Learned location of Zion (-7) 451 | -10/Subcaves | Met a Zionite searching for "candidates" 652 | -10/Subcaves | Core integrity fell below 50% 713 | -10/Subcaves | Lost 8 parts (1p2n1u4w) 745 | -10/Subcaves | Visited Clippyterm 749 | -10/Subcaves | Learned Factory stockpile data 791 | -10/Subcaves | Core integrity fell below 20% 801 | -10/Subcaves | Destroyed by S-10 Pest with Light Assault Rifle Last Messages --------------- responses. --DD-NU8 >>Record! "Finders Keepers" It looks like you're interested in reappropriating Complex 0b10 components, would you like help? Data stored: Factory stockpile data. >>Record! "Permadeath" It looks like you're defining "roguelike," quit while you're ahead. Please. >>Record! "Optimus" It looks like you're curious about the current leader of 0bPrime. Optimus is well liked, but certainly not being up front with the UFD as a whole. 00792_ Lgt. Assault Rifle destroyed. 00794_ Slammed into S-10 Pest. 00798_ Destabilizing: System corrupted (+2). 00799_ EW OE/ VA,TFKT%W6BAQNV/KJ53 00799_ Slammed into S-10 Pest. 00799_ Flight Unit broken. 00799_ Destabilizing: Short circuit. 00800_ Slammed into S-10 Pest. Map ----- +----------------------------------------------------+ | ##??# ??????????## "### ## | | ### ###??#### ###???????????# ##??# | | ??## ##??????#?????????????####???## | | ???## #????????????????????????????# # | | ????### #?????#??????????????????????# # | | ??????# #????????????????????????????# | | ??????# #????????????????????????????## | | ?????## ##?????????????????????????????## | | ##???# #????????#???????????????######## ## | | ##### #????????????????????????#"""## # | | # #????????????????????????#"" ## | | % ## #????????????????????????#"X | | = ## #?#??????????????????????#"" ## ## | | # ###????????????????????????#"""### ## | | ######??????????????????????????###### # | | ####????????????????????????????????????# | | #?????????????????????#?????????????????## ## | | #???#???????#????##??????????????????????# ## | | #?????????????### ?????????######???##### | | #?#?????????## ???????## ##?## ## | | #????? ?? ## ###???## ### | | % # ?????? ??## | | &# ?????? ?## | | %# #"#????????# ## # | | =&""##????????????# ## | | """ ??????????????## s@ s ## ##? | | *%?????????????????# ### #?? | | ??????????????# #?# #?? | | ??#???????????# ##?? | | #???????????## ### ##??? | | ###????????????#####???########## ##### ######???? | | ????????????????????????????????###???###????????? | | #??#?????????????????????????????????????????????? | | ?????????????????????????????????????????????????? | | ?????????????????????????????????????????????????? | | ?????????????????????????????????????????????????? | | ?????????????????????????????????????????????????? | | ?????????????????????????????????????????????????? | | ?????????????????????????????????????????????????? | | ?????????????????????????????????????????????????? | | ?????????????????????????????????????????????????? | | ?????????????????????????????????????????????????? | | ?????????????????????????????????????????????????? | | ?????????????????????????????????????????????????? | | ?????????????????????????????????????????????????? | | ?????????????????????????????????????????????????? | | | | | | | | | +----------------------------------------------------+ Best States ------------- Heat Dissipation 25 Energy Generation 10 Energy Capacity 250 Matter Stores 300 Matter Capacity 300 Sight Range 16 Terrain Scan Range 16 Terrain Scan Density 10 Evasion (%) 44 Item Schematics ----------------- None Robot Schematics ------------------ None Fabricated ------------ Nothing Repaired ---------- Nothing Alien Tech Used ----------------- None Achievements -------------- None Challenges ------------ None Game ------ Seed PlatingThiefRedistributor Manual? 0 Play Time 00:13:01 Cumulative 143.1 hours Start 2025.08.02 @ 18:46:19 End 2025.08.02 @ 18:54:08 Sessions 1 Manual Loads 0 Difficulty Rogue Special Mode None Game No. 283 Rogue 215 Adventurer 15 Explorer 53 Win Type - Total 5 Types 5/0/0/0/0/0/0/0/0/0 Lore% 41 Gallery% 57 Achievement% 50 Wizard Run 0 Options --------- Layout 0 ASCII 0 Keyboard 0 Movement Numpad Keybinds 0 Fullscreen 2 Font 18/SmallcapsGlow Map View 38x25 Zoom Use 98% Tactical HUD 1 Map Filters NONE Filters NONE Steam 1 RUN: 2b16d7b4-ed5a-4ab7-b0b1-3487f6f216c7